bitfinex-derivatives/quotes_BTCF0:USTF0_20250411
["timestamp","ask_amount","ask_price","bid_price","bid_amount"]
[1744341616542,0.5849122,80627.0,80626.0,0.1851138]
[1744341616837,0.5849122,80627.0,80626.0,0.0309]
[1744341617038,0.6159122,80627.0,80626.0,0.0309]
[1744341618340,0.1241168,80624.0,80623.0,0.1544184]
[1744341618959,0.1241168,80624.0,80623.0,0.0303]
[1744341619250,0.1241245,80619.0,80618.0,0.093763]
[1744341620142,0.1549245,80619.0,80618.0,0.093763]
[1744341620640,0.5157245,80619.0,80618.0,0.093763]
[1744341622843,0.1241276,80617.0,80616.0,0.00951434]
[1744341623061,0.1241338,80614.0,80613.0,0.1241329]
[1744341623346,0.1241353,80612.0,80611.0,0.00049621]
[1744341623541,0.1241353,80612.0,80611.0,0.12463311]
[1744341623943,0.1546353,80612.0,80611.0,0.12463311]
[1744341624249,0.1546353,80612.0,80611.0,0.13392466]
[1744341624548,0.1546353,80612.0,80611.0,0.19742466]
[1744341625951,0.0305,80612.0,80611.0,0.19742466]
[1744341626449,0.1546353,80612.0,80611.0,0.19742466]
[1744341626950,0.1546353,80612.0,80611.0,0.21407696]
[1744341627451,0.1241353,80612.0,80611.0,0.21407696]
[1744341627949,0.1861977,80615.0,80614.0,0.1241322]
[1744341628154,0.3608,80617.0,80614.0,0.0166523]
[1744341628353,0.4849276,80617.0,80616.0,0.1241292]
[1744341628650,0.3608,80617.0,80616.0,0.1407815]
[1744341628851,0.3608,80617.0,80616.0,0.2045815]
[1744341629150,0.4849276,80617.0,80616.0,0.2045815]
[1744341629545,0.3608,80617.0,80616.0,0.2045815]
[1744341629749,0.11148586,80619.0,80618.0,0.1241261]
[1744341630052,0.11148586,80619.0,80618.0,0.1407784]
[1744341631657,0.1241245,80619.0,80618.0,0.1407784]
[1744341631846,0.00018602,80620.0,80619.0,0.1241245]
[1744341632045,0.12430902,80620.0,80619.0,0.2063768]
[1744341632747,0.00018602,80620.0,80619.0,0.2063768]
[1744341635161,0.12430902,80620.0,80619.0,0.2063768]
[1744341635857,0.12430902,80620.0,80619.0,0.1897245]
[1744341636261,0.12430902,80620.0,80619.0,0.1566245]
[1744341637558,0.48510902,80620.0,80619.0,0.1566245]
[1744341637756,0.0620656,80615.0,80611.0,0.00978776]
[1744341638053,0.3608,80612.0,80602.0,0.37172503]
[1744341638255,0.1241399,80609.0,80603.0,0.0303]
[1744341638459,0.1241399,80609.0,80603.0,0.2165229]
[1744341638759,0.1241399,80609.0,80606.0,0.1241433]
[1744341638953,0.1241399,80609.0,80608.0,0.01675383]
[1744341639353,0.1241399,80609.0,80608.0,0.02599826]
[1744341640461,0.1241399,80609.0,80608.0,3e-08]
[1744341640655,0.1241399,80609.0,80569.0,0.4169]
[1744341640656,0.12416,80596.0,80588.0,0.47135367]
[1744341640850,0.58509453,80596.0,80588.0,0.47135367]
[1744341641062,0.1241723,80588.0,80587.0,0.12467015]
[1744341641357,0.1241723,80588.0,80587.0,0.13380844]
[1744341641560,0.1241723,80588.0,80587.0,0.19840844]
[1744341642261,0.1241723,80588.0,80587.0,0.07423464]
[1744341642658,0.1241723,80588.0,80587.0,0.00049635]
[1744341642853,0.4849723,80588.0,80587.0,0.00049635]
[1744341643563,0.4849723,80588.0,80587.0,0.06279635]
[1744341644757,0.3608,80588.0,80587.0,0.06279635]
[1744341644960,0.1241723,80588.0,80587.0,0.60985635]
[1744341646761,0.0620845,80591.0,80590.0,0.1241692]
[1744341646965,0.211725,80593.0,80592.0,0.1241661]
[1744341647264,0.23565086,80593.0,80592.0,0.1241661]
[1744341647659,0.23565086,80593.0,80592.0,0.1889661]
[1744341648765,0.11148586,80593.0,80592.0,0.1889661]
[1744341649466,0.23565046,80593.0,80592.0,0.1889661]
[1744341650869,0.1241646,80593.0,80592.0,0.1889661]
[1744341652772,0.4849646,80593.0,80592.0,0.0648]
[1744341652973,0.1241707,80589.0,80588.0,0.0622]
[1744341653277,0.1241707,80589.0,80588.0,0.1863723]
[1744341653479,0.1554707,80589.0,80588.0,0.1863723]
[1744341657985,0.0620852,80590.0,80589.0,0.1241707]
[1744341658188,0.0620852,80590.0,80589.0,0.1855707]
[1744341660689,0.0620852,80590.0,80589.0,0.0614]
[1744341661184,0.1241723,80588.0,80587.0,0.00049635]
[1744341661387,0.1241723,80588.0,80587.0,0.12467015]
[1744341661581,0.1241723,80588.0,80587.0,0.18687015]
[1744341662884,0.1241723,80588.0,80587.0,0.06269635]
[1744341663087,0.1241723,80588.0,80587.0,0.03119635]
[1744341663287,0.1241723,80588.0,80587.0,0.00049635]
[1744341663484,0.0620853,80589.0,80579.0,0.00018602]
[1744341663685,0.4849846,80580.0,80579.0,0.03088602]
[1744341664090,0.0620884,80585.0,80581.0,0.0620912]
[1744341664396,0.0620884,80585.0,80582.0,0.0318]
[1744341664584,0.12418,80583.0,80582.0,0.0318]
[1744341664785,0.12418,80583.0,80582.0,0.1559815]
[1744341665192,0.12418,80583.0,80582.0,0.0318]
[1744341665393,0.15478,80583.0,80582.0,0.0318]
[1744341666791,0.15478,80583.0,80582.0,0.1559815]
[1744341667292,0.15478,80583.0,80582.0,0.0318]
[1744341667488,0.51558,80583.0,80582.0,0.0318]
[1744341667688,0.1241846,80580.0,80579.0,0.13349114]
[1744341667889,0.1241846,80580.0,80579.0,0.00930574]
[1744341668090,0.1241846,80580.0,80579.0,0.13349194]
[1744341668896,0.1241846,80580.0,80579.0,0.00930574]
[1744341670094,0.1242077,80566.0,80564.0,0.4229043]
[1744341670289,0.1242077,80566.0,80565.0,0.1242068]
[1744341670601,0.1242077,80565.0,80564.0,0.00953251]
[1744341670899,0.1242093,80564.0,80557.0,0.1242194]
[1744341671102,0.1242093,80564.0,80555.0,0.0621113]
[1744341671402,0.1862093,80564.0,80563.0,0.30648809]
[1744341672300,0.1562093,80564.0,80563.0,0.13389048]
[1744341672693,0.1562093,80564.0,80563.0,0.19769048]
[1744341672889,0.1242093,80564.0,80563.0,0.19769048]
[1744341673296,0.1242093,80564.0,80540.0,0.47135367]
[1744341673297,0.1242216,80556.0,80540.0,0.47135367]
[1744341673497,0.4850216,80556.0,80546.0,0.0322]
[1744341673700,0.1242293,80551.0,80546.0,0.0322]
[1744341674007,0.1242293,80551.0,80540.0,0.47135367]
[1744341674008,0.2117493,80551.0,80540.0,0.47135367]
[1744341674601,0.2117493,80551.0,80550.0,1e-08]
[1744341676301,0.1242293,80551.0,80550.0,1e-08]
[1744341676605,0.0621137,80553.0,80551.0,0.1242293]
[1744341676606,0.27246958,80552.0,80551.0,0.1242293]
[1744341676804,0.30256958,80552.0,80551.0,0.1242293]
[1744341677000,0.1242324,80550.0,80549.0,0.1242316]
[1744341678105,0.1242386,80546.0,80545.0,0.0621191]
[1744341678505,0.0621183,80547.0,80546.0,0.124237]
[1744341678706,0.4850318,80550.0,80549.0,0.1242324]
[1744341679097,0.27246958,80552.0,80551.0,0.1242293]
[1744341679399,0.14824178,80552.0,80551.0,0.1242293]
[1744341679599,0.27246958,80552.0,80551.0,0.1242293]
[1744341679801,0.1242278,80552.0,80551.0,0.1242293]
[1744341681105,0.3608,80559.0,80544.0,0.3608]
[1744341681305,0.00018614,80560.0,80544.0,0.3608]
[1744341681306,0.0621094,80558.0,80557.0,0.1863264]
[1744341681699,0.06229394,80560.0,80559.0,0.124217]
[1744341682307,0.00018614,80560.0,80559.0,0.124217]
[1744341683907,0.00018614,80560.0,80559.0,0.154517]
[1744341687711,0.11095049,80571.0,80570.0,0.1242]
[1744341687907,0.11095049,80571.0,80570.0,0.485]
[1744341688304,0.11095049,80580.0,80579.0,0.1241862]
[1744341691011,0.23513509,80580.0,80579.0,0.1241862]
[1744341692004,0.1241846,80580.0,80579.0,0.1241862]
[1744341692611,0.1241846,80580.0,80579.0,0.13334397]
[1744341693318,0.01282552,80586.0,80579.0,0.13334397]
[1744341693319,0.0004,80586.0,80585.0,0.1241769]
[1744341693610,0.00018614,80588.0,80587.0,0.1241738]
[1744341695906,0.00018614,80588.0,80587.0,0.13351415]
[1744341701824,0.07474934,80610.0,80609.0,0.1241399]
[1744341701825,0.0004,80610.0,80609.0,0.1241399]
[1744341702524,0.1245384,80610.0,80609.0,0.1241399]
[1744341702718,0.1562384,80610.0,80609.0,0.1241399]
[1744341704726,0.1562384,80610.0,80609.0,0.1572399]
[1744341705124,0.0321,80610.0,80609.0,0.1572399]
[1744341705516,0.0004,80610.0,80609.0,0.1572399]
[1744341706617,0.00018614,80618.0,80609.0,0.0331]
[1744341706823,0.11095049,80630.0,80626.0,0.1241138]
[1744341707213,0.11095049,80630.0,80629.0,0.1241091]
[1744341707517,0.0322,80635.0,80626.0,0.4228568]
[1744341707518,0.0308,80644.0,80640.0,0.1240922]
[1744341707723,0.0322,80643.0,80640.0,0.1240922]
[1744341708124,0.0322,80643.0,80642.0,0.1240891]
[1744341711031,0.18530223,80646.0,80645.0,0.1240845]
[1744341711735,0.00018601,80649.0,80648.0,0.1240799]
[1744341722833,0.0620417,80646.0,80645.0,0.1240845]
[1744341723025,0.3120417,80646.0,80645.0,0.1240845]
[1744341724235,0.3120417,80646.0,80631.0,0.0620529]
[1744341724236,0.1861536,80636.0,80635.0,0.0620493]
[1744341724543,0.2482042,80636.0,80635.0,0.0620493]
[1744341724938,0.1241012,80636.0,80635.0,0.0620493]
[1744341725533,0.0621,80641.0,80640.0,0.1240922]
[1744341725734,0.0317,80641.0,80640.0,0.1240922]
[1744341726135,0.1557907,80641.0,80640.0,0.1240922]
[1744341727735,0.1240953,80639.0,80638.0,0.1240951]
[1744341728132,0.0327,80639.0,80638.0,0.1240951]
[1744341728330,0.0327,80639.0,80638.0,0.1878951]
[1744341728728,0.1567938,80639.0,80638.0,0.1878951]
[1744341729533,0.1567938,80639.0,80638.0,0.1553951]
[1744341734145,0.1567938,80639.0,80638.0,0.1240951]
[1744341734344,0.124103,80634.0,80633.0,0.1861506]
[1744341735141,0.0323,80635.0,80634.0,0.1241014]
[1744341735443,0.0620442,80643.0,80642.0,0.1240891]
[1744341737051,0.4228442,80643.0,80642.0,0.1564891]
[1744341737338,0.0620442,80643.0,80642.0,0.1564891]
[1744341737545,0.0620442,80643.0,80642.0,0.1240891]
[1744341737734,0.0951442,80643.0,80642.0,0.1240891]
[1744341738445,0.4559442,80643.0,80642.0,0.1240891]
[1744341742151,0.0620456,80641.0,80633.0,0.1241023]
[1744341742348,0.124103,80633.0,80632.0,0.12428951]
[1744341743049,0.124103,80633.0,80632.0,0.18878951]
[1744341743239,0.154703,80633.0,80632.0,0.18878951]
[1744341745950,0.186603,80633.0,80632.0,0.18878951]
[1744341746252,0.186603,80633.0,80632.0,0.12428951]
[1744341747348,0.0306,80633.0,80632.0,0.12428951]
[1744341747544,0.154703,80633.0,80632.0,0.12428951]
[1744341748452,0.154703,80633.0,80632.0,0.00018601]
[1744341748951,0.186603,80633.0,80632.0,0.00018601]
[1744341749162,0.186603,80633.0,80632.0,0.12429051]
[1744341750654,0.0306,80633.0,80632.0,0.12429051]
[1744341751148,0.1241001,80635.0,80634.0,0.1241014]
[1744341751837,0.1241001,80635.0,80634.0,0.1545014]
[1744341752547,0.18530223,80636.0,80634.0,0.0304]
[1744341752751,0.18530223,80636.0,80635.0,0.1557999]
[1744341754953,0.18530223,80636.0,80635.0,0.5165999]
[1744341757056,0.1240835,80646.0,80645.0,0.1240845]
[1744341757957,0.18530223,80647.0,80646.0,0.124083]
[1744341758256,0.18530223,80647.0,80646.0,0.188883]
[1744341758658,0.30938363,80647.0,80646.0,0.188883]
[1744341758955,0.34068363,80647.0,80646.0,0.188883]
[1744341759158,0.37258363,80647.0,80646.0,0.188883]
[1744341759858,0.34068363,80647.0,80646.0,0.188883]
[1744341761861,0.1553814,80647.0,80646.0,0.188883]
[1744341767962,0.1553814,80647.0,80646.0,0.124083]
[1744341768163,0.1240845,80645.0,80644.0,0.0620429]
[1744341769175,0.1240845,80645.0,80644.0,0.0935429]
[1744341769564,0.1240845,80645.0,80644.0,0.0620429]
[1744341772866,0.1240845,80645.0,80644.0,0.0942429]
[1744341773462,0.1866845,80645.0,80644.0,0.0942429]
[1744341777062,0.33525371,80645.0,80644.0,0.0942429]
[1744341778065,0.21116921,80645.0,80635.0,0.3608]
[1744341778263,0.124103,80633.0,80626.0,0.36999762]
[1744341778468,0.484903,80633.0,80625.0,0.1241149]
[1744341778664,0.484903,80633.0,80624.0,0.1241163]
[1744341778965,0.484903,80633.0,80623.0,0.16413858]
[1744341779171,0.484903,80633.0,80620.0,0.0620609]
[1744341779471,0.549603,80633.0,80623.0,0.0621]
[1744341779663,0.549603,80633.0,80630.0,0.1861605]
[1744341779863,0.549603,80633.0,80631.0,0.03]
[1744341780463,0.549603,80633.0,80632.0,0.03098601]
[1744341780866,0.517103,80633.0,80632.0,0.15509051]
[1744341782769,0.76274142,80633.0,80632.0,0.15509051]
[1744341783182,0.79604142,80633.0,80632.0,0.15509051]
[1744341783567,0.79604142,80633.0,80632.0,0.03098601]
[1744341784472,0.79604142,80633.0,80632.0,0.06268601]
[1744341785269,0.79604142,80633.0,80632.0,0.18679051]
[1744341785470,0.79604142,80633.0,80632.0,0.00018601]
[1744341787268,0.550403,80633.0,80632.0,0.00018601]
[1744341794168,0.517103,80633.0,80632.0,0.12429051]
[1744341794373,0.3608,80633.0,80632.0,0.12429051]
[1744341794981,0.18530223,80638.0,80637.0,0.1240968]
[1744341795481,0.18530223,80638.0,80637.0,0.3740968]
[1744341795673,0.18530223,80639.0,80638.0,0.1240953]
[1744341795874,0.18530223,80639.0,80638.0,0.1862953]
[1744341796074,0.18530223,80639.0,80638.0,0.4692953]
[1744341797281,0.18530223,80639.0,80638.0,0.2192953]
[1744341799885,0.1240918,80641.0,80640.0,0.1240922]
[1744341800086,0.0620442,80643.0,80642.0,0.1240891]
[1744341800787,0.0620442,80643.0,80642.0,0.1562891]
[1744341801275,0.0301,80651.0,80642.0,0.0942444]
[1744341801589,0.00934559,80664.0,80642.0,0.0942444]
[1744341801590,0.7789,80687.0,80662.0,0.1240584]
[1744341801781,0.0308,80678.0,80673.0,0.1240415]
[1744341801987,0.2959288,80680.0,80673.0,0.1240415]
[1744341802187,0.3579443,80680.0,80673.0,0.1240415]
[1744341802489,0.38382984,80674.0,80673.0,0.1240415]
[1744341802679,0.38382984,80674.0,80673.0,0.1892415]
[1744341802879,0.25978994,80674.0,80673.0,0.1892415]
[1744341803078,0.25978994,80674.0,80673.0,0.19862065]
[1744341804188,0.062019,80676.0,80673.0,0.19862065]
[1744341804189,0.062019,80676.0,80675.0,0.1240384]
[1744341804391,0.3608,80684.0,80673.0,0.13659925]
[1744341804392,0.0325,80690.0,80681.0,0.1240292]
[1744341804685,0.1240271,80683.0,80681.0,0.1240292]
[1744341804889,0.12461361,80682.0,80681.0,0.1240292]
[1744341805089,0.12461361,80682.0,80681.0,0.1853292]
[1744341805391,0.12461361,80682.0,80681.0,0.0613]
[1744341805592,0.12461361,80682.0,80681.0,0.1853292]
[1744341805888,0.1860474,80681.0,80680.0,0.1240297]
[1744341806085,0.2489474,80681.0,80680.0,0.1240297]
[1744341806883,0.2489474,80681.0,80680.0,0.1863297]
[1744341808397,0.2164474,80681.0,80680.0,0.1863297]
[1744341809092,0.0924152,80681.0,80680.0,0.1863297]
[1744341810493,0.1240522,80666.0,80658.0,0.44788]
[1744341810691,0.1240522,80666.0,80665.0,0.12423981]
[1744341810991,0.1240522,80666.0,80665.0,0.00018601]
[1744341811498,0.1554522,80666.0,80665.0,0.12423981]
[1744341811698,0.1885522,80666.0,80665.0,0.12423981]
[1744341814204,0.1571522,80666.0,80665.0,0.12423981]
[1744341814390,0.1571522,80666.0,80665.0,0.00018601]
[1744341814690,0.0620113,80686.0,80674.0,0.0620193]
[1744341814895,0.1860546,80677.0,80676.0,0.1240368]
[1744341815301,0.1860546,80677.0,80676.0,0.1874368]
[1744341815491,0.0620178,80677.0,80676.0,0.1874368]
[1744341817802,0.00058601,80682.0,80677.0,0.062017]
[1744341817998,0.0004,80706.0,80681.0,0.3608]
[1744341818185,0.0004,80706.0,80705.0,0.4847923]
[1744341818590,0.0004,80706.0,80705.0,0.5491923]
[1744341818790,0.1243907,80706.0,80705.0,0.1883923]
[1744341819093,0.0619982,80703.0,80698.0,0.3608]
[1744341819296,0.062002,80698.0,80697.0,0.00018589]
[1744341819500,0.124003,80698.0,80697.0,0.00018589]
[1744341819701,0.1239972,80702.0,80697.0,0.06218739]
[1744341819891,0.0619969,80704.0,80703.0,0.1239953]
[1744341820891,0.0619969,80704.0,80703.0,0.1862953]
[1744341824402,0.0004,80706.0,80705.0,0.1239923]
[1744341824997,0.1243907,80706.0,80705.0,0.1239923]
[1744341825796,0.0004,80706.0,80705.0,0.1239923]
[1744341826999,1e-07,80706.0,80705.0,0.3739923]
[1744341827196,1e-07,80706.0,80705.0,0.75123641]
[1744341830006,1e-07,80706.0,80705.0,0.50123641]
[1744341830707,0.1239908,80706.0,80705.0,0.4847923]
[1744341830903,0.1239908,80706.0,80705.0,0.1239923]
[1744341832606,0.1239938,80704.0,80703.0,0.0623]
[1744341832911,0.1239938,80704.0,80703.0,0.1862953]
[1744341833304,0.03,80704.0,80703.0,0.1862953]
[1744341833609,1e-07,80706.0,80705.0,0.1239923]
[1744341834801,0.0004,80730.0,80705.0,0.25]
[1744341835006,0.0004,80730.0,80729.0,0.1239554]
[1744341835604,0.1243539,80730.0,80729.0,0.1239554]
[1744341835806,0.1243539,80730.0,80729.0,0.1880554]
[1744341836005,0.0004,80730.0,80729.0,0.1880554]
[1744341836514,0.0004,80730.0,80729.0,0.21386647]
[1744341836814,0.11076104,80732.0,80731.0,0.1239523]
[1744341837005,0.11076104,80732.0,80731.0,0.14047404]
[1744341837405,0.11076104,80732.0,80731.0,0.14039655]
[1744341837709,0.00012378,80738.0,80737.0,0.1239431]
[1744341837910,0.00012378,80738.0,80737.0,0.4847431]
[1744341838112,0.1239431,80737.0,80736.0,0.0634]
[1744341838307,0.033,80737.0,80736.0,0.1873447]
[1744341838515,0.1569431,80737.0,80736.0,0.1873447]
[1744341838807,0.1569431,80737.0,80729.0,0.00928933]
[1744341838808,0.1239539,80730.0,80729.0,0.00928933]
[1744341839007,0.1239539,80730.0,80729.0,0.1239554]
[1744341839219,0.1239539,80730.0,80729.0,0.13310414]
[1744341839510,0.1239539,80730.0,80729.0,0.16480414]
[1744341839706,0.1239662,80722.0,80721.0,0.18613399]
[1744341839914,0.1239662,80722.0,80721.0,0.12415359]
[1744341840205,0.0619815,80724.0,80721.0,0.12415359]
[1744341840206,0.033,80723.0,80722.0,0.1239662]
[1744341840615,0.1569646,80723.0,80722.0,0.1550662]
[1744341840809,0.1569646,80723.0,80722.0,0.0311]
[1744341841012,0.1239662,80722.0,80721.0,0.00948245]
[1744341841206,0.1540662,80722.0,80721.0,0.00018589]
[1744341841816,0.4040662,80722.0,80721.0,0.00018589]
[1744341842015,0.0619893,80714.0,80707.0,0.00049562]
[1744341842207,0.4847877,80708.0,80707.0,0.00049562]
[1744341842514,0.1240076,80695.0,80694.0,0.22148806]
[1744341843304,0.1853076,80695.0,80694.0,0.22148806]
[1744341843508,0.4353076,80695.0,80694.0,0.22148806]
[1744341844915,0.1853076,80695.0,80694.0,0.22148806]
[1744341847014,0.1240122,80692.0,80691.0,0.0634]
[1744341847209,0.1240184,80688.0,80687.0,0.1240194]
[1744341848121,0.1240199,80687.0,80684.0,0.0323]
[1744341848327,0.1875199,80687.0,80683.0,0.00049576]
[1744341848619,0.1875199,80687.0,80683.0,0.12452136]
[1744341849023,0.1875199,80687.0,80683.0,0.00049576]
[1744341849318,0.1568199,80687.0,80686.0,0.12420739]
[1744341850216,0.1568199,80687.0,80686.0,0.15430739]
[1744341850416,0.0328,80687.0,80686.0,0.15430739]
[1744341850615,0.4848107,80693.0,80689.0,0.0620084]
[1744341850815,0.032,80701.0,80700.0,0.124]
[1744341851014,0.032,80701.0,80692.0,0.3608]
[1744341851015,0.0620044,80695.0,80692.0,0.3608]
[1744341851226,0.1860289,80689.0,80688.0,0.1860253]
[1744341851527,0.1240199,80687.0,80686.0,0.00018589]
[1744341852119,0.1240199,80687.0,80686.0,0.12420739]
[1744341852619,0.1240199,80687.0,80686.0,0.00018589]
[1744341852818,0.1240199,80687.0,80686.0,0.12420739]
[1744341853011,0.1850199,80687.0,80686.0,0.12420739]
[1744341853625,0.1850199,80687.0,80686.0,0.00018589]
[1744341853823,0.1850199,80687.0,80686.0,0.12420739]
[1744341855426,0.1850199,80687.0,80686.0,0.00018589]
[1744341855827,0.1540199,80687.0,80686.0,0.12420739]
[1744341857832,0.1240199,80687.0,80686.0,0.12420739]
[1744341858227,0.1240199,80687.0,80686.0,0.00018589]
[1744341858424,0.1240199,80687.0,80686.0,0.12420739]
[1744341858824,0.1880199,80687.0,80686.0,0.12420739]
[1744341859822,0.1880199,80687.0,80686.0,0.15440739]
[1744341860426,0.1880199,80687.0,80686.0,0.12420739]
[1744341860832,0.1880199,80687.0,80686.0,0.00018589]
[1744341861525,0.1880199,80687.0,80686.0,0.12420739]
[1744341862732,0.1562199,80687.0,80686.0,0.12420739]
[1744341863128,0.0322,80687.0,80686.0,0.12420739]
[1744341863329,0.1562199,80687.0,80686.0,0.12420739]
[1744341867625,0.1240199,80687.0,80686.0,0.12420739]
[1744341868525,0.1240199,80687.0,80686.0,0.00018589]
[1744341869033,0.1240199,80687.0,80686.0,0.12420739]
[1744341870535,0.1240199,80687.0,80686.0,0.00018589]
[1744341871637,0.1572199,80687.0,80686.0,0.00018589]
[1744341874840,0.1878199,80687.0,80686.0,0.00018589]
[1744341877138,0.1546199,80687.0,80686.0,0.00018589]
[1744341877833,0.1858199,80687.0,80686.0,0.00018589]
[1744341881943,0.1240368,80676.0,80675.0,0.22148806]
[1744341882443,0.1240326,80680.0,80679.0,0.1240285]
[1744341882943,0.1860405,80684.0,80683.0,0.062013]
[1744341883143,0.1240292,80682.0,80681.0,0.1873289]
[1744341883348,0.1240292,80682.0,80681.0,0.0633]
[1744341883531,0.1240292,80682.0,80681.0,0.1873292]
[1744341884945,0.1240292,80682.0,80681.0,0.0633]
[1744341889140,0.1240292,80682.0,80681.0,0.1873292]
[1744341889348,0.1240292,80682.0,80681.0,0.0633]
[1744341889645,0.1240292,80682.0,80681.0,0.1873292]
[1744341890546,0.1240292,80682.0,80681.0,0.0633]
[1744341890753,0.1545292,80682.0,80681.0,0.0633]
[1744341897550,0.1861292,80682.0,80681.0,0.0633]
[1744341900053,0.1545292,80682.0,80681.0,0.0633]
[1744341902651,0.1847292,80682.0,80681.0,0.0633]
[1744341904052,0.1240292,80682.0,80681.0,0.0633]
[1744341904250,0.1240292,80682.0,80681.0,0.1873292]
[1744341904852,0.124025,80684.0,80683.0,0.1860353]
[1744341905151,0.124025,80684.0,80683.0,0.0620123]
[1744341905352,0.124025,80684.0,80683.0,0.1240123]
[1744341905649,0.124025,80684.0,80683.0,0.062]
[1744341906742,0.124025,80684.0,80683.0,0.1860261]
[1744341920257,0.03248589,80688.0,80685.0,0.0620108]
[1744341920457,0.1487068,80690.0,80689.0,0.1240169]
[1744341921059,0.08696,80724.0,80700.0,0.124]
[1744341921256,0.1239854,80710.0,80705.0,0.1239923]
[1744341921653,0.1239873,80709.0,80705.0,0.1239923]
[1744341921856,0.0927908,80712.0,80705.0,0.1239923]
[1744341922557,0.34551908,80711.0,80705.0,0.1239923]
[1744341922863,0.123985,80710.0,80705.0,0.1239923]
[1744341924259,0.1243907,80706.0,80705.0,0.1239923]
[1744341924463,0.1243907,80706.0,80705.0,0.1885923]
[1744341930669,0.1243907,80706.0,80705.0,0.5493923]
[1744341930969,0.0004,80706.0,80705.0,0.5493923]
[1744341931158,0.0333,80715.0,80713.0,0.12398]
[1744341931363,0.0619859,80719.0,80713.0,0.48478]
[1744341931567,0.12416609,80714.0,80713.0,0.48478]
[1744341932570,0.00018589,80714.0,80713.0,0.51498]
[1744341932771,0.0317,80715.0,80714.0,0.1239784]
[1744341933269,0.0317,80715.0,80714.0,0.1873784]
[1744341933672,0.1556769,80715.0,80714.0,0.1873784]
[1744341933865,0.0317,80715.0,80714.0,0.1873784]
[1744341934066,0.0317,80715.0,80714.0,0.1969033]
[1744341934972,0.1556769,80715.0,80714.0,0.1335033]
[1744341935269,0.1856769,80715.0,80714.0,0.1335033]
[1744341937066,0.4847667,80722.0,80721.0,0.1239677]
[1744341937262,0.1542662,80722.0,80721.0,0.1239677]
[1744341937465,0.0603,80722.0,80721.0,0.1239677]
[1744341937670,0.1842662,80722.0,80721.0,0.1868677]
[1744341938466,0.1842662,80722.0,80721.0,0.1239677]
[1744341939466,0.1842662,80722.0,80721.0,0.13324018]
[1744341944780,0.1842662,80722.0,80713.0,0.42297519]
[1744341944781,0.1239784,80714.0,80713.0,0.48496589]
[1744341945672,0.1872784,80714.0,80713.0,0.48496589]
[1744341946572,0.1872784,80714.0,80713.0,0.36098589]
[1744341946785,0.1872784,80714.0,80713.0,0.00018589]
[1744341947171,0.1872784,80714.0,80713.0,0.00968137]
[1744341947384,0.1240015,80700.0,80699.0,0.1240007]
[1744341947680,0.124003,80698.0,80697.0,0.28349016]
[1744341947977,0.124003,80698.0,80697.0,0.22148806]
[1744341948481,0.187303,80698.0,80697.0,0.22148806]
[1744341949580,0.56045866,80698.0,80697.0,0.22148806]
[1744341952379,0.1240153,80690.0,80689.0,0.00018589]
[1744341952784,0.4848153,80690.0,80689.0,0.00018589]
[1744341953170,0.5466153,80690.0,80689.0,0.00018589]
[1744341953680,0.1240245,80684.0,80683.0,0.00049576]
[1744341953983,0.1240292,80681.0,80680.0,0.22148806]
[1744341954485,0.1240292,80681.0,80680.0,0.17158806]
[1744341955687,0.2109492,80681.0,80680.0,0.17158806]
[1744341957081,0.1240368,80677.0,80676.0,0.1240362]
[1744341957481,0.1878368,80677.0,80676.0,0.1240362]
[1744341959684,0.0620152,80681.0,80680.0,0.1240307]
[1744341960483,0.0620152,80681.0,80680.0,0.1559307]
[1744341961286,0.0937152,80681.0,80680.0,0.1861307]
[1744341963389,0.1240384,80675.0,80674.0,0.37011147]
[1744341963985,0.0620033,80696.0,80674.0,0.37011147]
[1744341963986,0.0620147,80681.0,80674.0,0.37011147]
[1744341964286,0.00018589,80689.0,80675.0,0.0303]
[1744341964492,0.15680279,80689.0,80688.0,0.1240184]
[1744341965290,0.15680279,80689.0,80688.0,0.1869184]
[1744341965588,0.1240184,80688.0,80687.0,0.0321]
[1744341965793,0.1572184,80688.0,80687.0,0.0321]
[1744341965989,0.1860521,80679.0,80678.0,0.1860466]
[1744341966390,0.0620168,80679.0,80678.0,0.1860466]
[1744341966578,0.0620168,80679.0,80678.0,0.2160466]
[1744341966994,0.0620168,80679.0,80678.0,0.0920167]
[1744341967292,0.0620168,80679.0,80678.0,0.03]
[1744341968690,0.0620168,80679.0,80678.0,0.1540338]
[1744341968991,0.0950168,80679.0,80678.0,0.03]
[1744341969185,0.1240338,80678.0,80677.0,0.0329]
[1744341969496,0.1550338,80678.0,80677.0,0.1569353]
[1744341969691,0.1550338,80678.0,80677.0,0.1889353]
[1744341980904,0.1240298,80681.0,80680.0,0.1240307]
[1744341981294,0.1565298,80681.0,80680.0,0.1240307]
[1744341982108,0.1240322,80679.0,80678.0,0.1860491]
[1744341986007,0.1559322,80679.0,80678.0,0.1860491]
[1744341987909,0.26682531,80679.0,80678.0,0.1860491]
[1744341989118,0.14279311,80679.0,80678.0,0.1860491]
[1744341989424,0.11089311,80679.0,80678.0,0.4360491]
[1744341989917,0.11089311,80679.0,80678.0,0.44854208]
[1744341990118,0.11089311,80679.0,80678.0,0.1860491]
[1744341991514,0.0302,80681.0,80680.0,0.1240307]
[1744341995125,0.00018589,80689.0,80683.0,0.0620128]
[1744341995319,0.00018589,80689.0,80688.0,0.4848184]
[1744341995712,0.03078589,80689.0,80688.0,0.4848184]
[1744341995915,0.15480279,80689.0,80688.0,0.4848184]
[1744341996118,0.15480279,80689.0,80688.0,0.5150184]
[1744341999725,0.03078589,80689.0,80688.0,0.5462184]
[1744341999924,0.15480279,80689.0,80688.0,0.5462184]
[1744342003628,0.15480279,80689.0,80688.0,0.4848184]
[1744342005725,0.15480279,80689.0,80688.0,0.3608]
[1744342005939,0.1860405,80684.0,80683.0,0.1240251]
[1744342006424,0.2834405,80684.0,80683.0,0.1240251]
[1744342007831,0.2834405,80684.0,80683.0,0.4848251]
[1744342008032,0.1594129,80684.0,80683.0,0.4848251]
[1744342011030,0.1594129,80684.0,80683.0,0.1240251]
[1744342015338,0.1240322,80679.0,80678.0,0.4848323]
[1744342015531,0.1240322,80679.0,80678.0,0.3608]
[1744342016136,0.1885322,80679.0,80678.0,0.3608]
[1744342016941,0.1885322,80679.0,80678.0,0.4848338]
[1744342017944,0.0645,80679.0,80678.0,0.4848338]
[1744342018645,0.1885322,80679.0,80678.0,0.5159338]
[1744342018942,0.1885322,80679.0,80678.0,0.4848338]
[1744342019547,0.0645,80679.0,80678.0,0.4848338]
[1744342019847,0.0325,80679.0,80678.0,0.4848338]
[1744342020243,0.0325,80679.0,80678.0,0.5171338]
[1744342020549,0.11145571,80681.0,80680.0,0.1240307]
[1744342020733,0.14861443,80686.0,80685.0,0.124023]
[1744342020932,1e-08,80686.0,80685.0,0.124023]
[1744342021538,1e-08,80686.0,80685.0,0.187423]
[1744342022546,0.12402151,80686.0,80685.0,0.187423]